fUST/lending_fUST_20250204
["ID","MTS","AMOUNT","RATE_DAILY","PERIOD"]
[351586019,1738648240198,-399.945645,0.00016438,2]
[351586148,1738648243328,-250.16464365,0.00016438,2]
[351586149,1738648243338,-694.25,0.00016438,2]
[351586150,1738648243347,-500.0,0.00016438,2]
[351586151,1738648243356,-1652.15,0.00016438,2]
[351586152,1738648243366,-1446.99,0.00016438,2]
[351586154,1738648243375,-500.0,0.00016438,2]
[351586156,1738648243385,-352.6483594,0.00016438,2]
[351586158,1738648243394,-500.0,0.00016438,2]
[351586160,1738648243403,-500.0,0.00016438,2]
[351586162,1738648243412,-1168.81,0.00016438,2]
[351586164,1738648243422,-507.42403273,0.00016438,2]
[351586165,1738648243431,-527.2141806,0.00016438,2]
[351586166,1738648243440,-500.0,0.00016438,2]
[351586167,1738648243449,-887.41,0.00016438,2]
[351586168,1738648243459,-668.98,0.00016438,2]
[351586169,1738648243468,-219.61417735,0.00016438,2]
[351586170,1738648243480,-280.38582265,0.00016438,2]
[351586171,1738648243489,-500.0,0.00016438,2]
[351586172,1738648243498,-208.96617735,0.00016438,2]
[351586374,1738648315580,231.115565,0.00013973,2]
[351586381,1738648315920,600.0,0.00014246,2]
[351586393,1738648495402,171.765122,0.00013699,2]
[351586396,1738648621742,1163.11049213,0.00015012,2]
[351586405,1738649191333,21493.6866873,0.00014857,2]
[351586409,1738649218885,228.174629,0.00013973,2]
[351586421,1738649228397,3000.0,0.00020453,120]
[351586428,1738649432379,-503.0,0.00015068,2]
[351586429,1738649432389,-600.0,0.00015616,2]
[351586430,1738649432399,-926.45819755,0.000159,2]
[351586431,1738649432408,-162.954761,0.00015912,2]
[351586432,1738649432418,-300.0,0.00015999,2]
[351586433,1738649432427,-17229.69378023,0.00016,2]
[351586434,1738649432439,-6187.20994594,0.00016,2]
[351586435,1738649432450,-463.2401,0.00016,2]
[351586436,1738649432462,-710.17380002,0.00016,2]
[351586437,1738649432479,-4135.23937554,0.00016,2]
[351586438,1738649432590,-1629.79949955,0.00016,2]
[351586439,1738649432602,-5587.36357136,0.00016,2]
[351586451,1738649438464,-9889.49,0.00016,2]
[351586452,1738649438478,-130936.13248633,0.00016,2]
[351586453,1738649438492,-153.55854776,0.0001611,2]
[351586454,1738649438505,-193.325056,0.00016175,5]
[351586456,1738649438516,-162.954761,0.00016175,5]
[351586458,1738649438527,-154.3274537,0.000162,2]
[351586459,1738649438537,-354.1278896,0.000162,2]
[351586460,1738649438549,-226.4670325,0.000162,2]
[351586461,1738649438559,-153.55854776,0.00016329,2]
[351586462,1738649438569,-397.813,0.00016376,2]
[351586463,1738649438579,-3000.0,0.000164,2]
[351586464,1738649438590,-155.5416266,0.000164,2]
[351586465,1738649438600,-507.4044102,0.000164,2]
[351586466,1738649438612,-3000.0,0.0001641,2]
[351586467,1738649438622,-3000.0,0.0001642,2]
[351586468,1738649438633,-272.04226361,0.00016429,2]
[351586469,1738649438644,-3000.0,0.0001643,2]
[351586470,1738649438655,-142404.14697506,0.0001643,2]
[351586471,1738649438666,-9512.07441628,0.00016437,2]
[351586472,1738649438675,-499.0,0.00016437,2]
[351586473,1738649438685,-160.44172471,0.00016437,2]
[351586474,1738649438695,-151.0,0.00016438,2]
[351586475,1738649438704,-153.240663,0.00016438,2]
[351586476,1738649438713,-500.0,0.00016438,2]
[351586477,1738649438723,-500.0,0.00016438,2]
[351586478,1738649438732,-500.0,0.00016438,2]
[351586479,1738649438742,-500.0,0.00016438,2]
[351586480,1738649438751,-508.66649537,0.00016438,2]
[351586481,1738649438761,-500.0,0.00016438,2]
[351586482,1738649438771,-500.0,0.00016438,2]
[351586483,1738649438780,-515.75584809,0.00016438,2]
[351586484,1738649438790,-505.08902571,0.00016438,2]
[351586485,1738649438799,-500.0,0.00016438,2]
[351586486,1738649438810,-500.0,0.00016438,2]
[351586487,1738649438820,-504.5757575,0.00016438,2]
[351586488,1738649438830,-500.0,0.00016438,2]
[351586489,1738649438839,-500.0,0.00016438,2]
[351586490,1738649438849,-500.0,0.00016438,2]
[351586491,1738649438858,-484.53899975,0.00016438,2]
[351586492,1738649438867,-228.16047178,0.00016438,2]
[351586493,1738649438877,-151.0,0.00016438,2]
[351586494,1738649438886,-500.0,0.00016438,2]
[351586495,1738649438896,-500.0,0.00016438,2]
[351586496,1738649438906,-501.64028223,0.00016438,2]
[351586497,1738649438917,-550.36,0.00016438,2]
[351586498,1738649438926,-500.0,0.00016438,2]
[351586499,1738649438935,-500.0,0.00016438,2]
[351586500,1738649438945,-500.0,0.00016438,2]
[351586501,1738649438954,-500.0,0.00016438,2]
[351586502,1738649438964,-500.0,0.00016438,2]
[351586503,1738649438975,-500.0,0.00016438,2]
[351586504,1738649438984,-500.0,0.00016438,2]
[351586505,1738649438995,-500.0,0.00016438,2]
[351586506,1738649439006,-500.0,0.00016438,2]
[351586507,1738649439015,-500.0,0.00016438,2]
[351586508,1738649439025,-500.0,0.00016438,2]
[351586509,1738649439035,-500.0,0.00016438,2]
[351586510,1738649439045,-500.0,0.00016438,2]
[351586511,1738649439055,-500.0,0.00016438,2]
[351586512,1738649439064,-500.0,0.00016438,2]
[351586513,1738649439074,-507.37484531,0.00016438,2]
[351586514,1738649439083,-500.0,0.00016438,2]
[351586515,1738649439092,-657.72,0.00016438,2]
[351586516,1738649439102,-500.0,0.00016438,2]
[351586517,1738649439113,-500.0,0.00016438,2]
[351586518,1738649439123,-513.89689437,0.00016438,2]
[351586519,1738649439133,-857.78,0.00016438,2]
[351586520,1738649439142,-500.0,0.00016438,2]
[351586521,1738649439152,-500.0,0.00016438,2]
[351586522,1738649439160,-500.0,0.00016438,2]
[351586523,1738649439170,-200.0,0.00016438,2]
[351586524,1738649439179,-500.0,0.00016438,2]
[351586525,1738649439188,-500.0,0.00016438,2]
[351586526,1738649439198,-500.0,0.00016438,2]
[351586528,1738649439207,-500.0,0.00016438,2]
[351586530,1738649439216,-500.0,0.00016438,2]
[351586532,1738649439225,-500.0,0.00016438,2]
[351586534,1738649439234,-500.0,0.00016438,2]
[351586536,1738649439244,-500.0,0.00016438,2]
[351586538,1738649439257,-500.0,0.00016438,2]
[351586540,1738649439267,-500.0,0.00016438,2]
[351586542,1738649439276,-500.0,0.00016438,2]
[351586544,1738649439285,-500.0,0.00016438,2]
[351586546,1738649439296,-500.0,0.00016438,2]
[351586548,1738649439306,-500.0,0.00016438,2]
[351586550,1738649439315,-1098.51,0.00016438,2]
[351586552,1738649439326,-500.0,0.00016438,2]
[351586553,1738649439336,-500.0,0.00016438,2]
[351586554,1738649439345,-1080.38,0.00016438,2]
[351586555,1738649439354,-640.53785926,0.00016438,2]
[351586556,1738649439363,-403.26758279,0.00016438,2]
[351586557,1738649439373,-500.0,0.00016438,2]
[351586558,1738649439382,-500.0,0.00016438,2]
[351586559,1738649439391,-500.0,0.00016438,2]
[351586560,1738649439401,-500.0,0.00016438,2]
[351586561,1738649439411,-500.0,0.00016438,2]
[351586562,1738649439420,-500.0,0.00016438,2]
[351586563,1738649439429,-500.0,0.00016438,2]
[351586564,1738649439438,-500.0,0.00016438,2]
[351586565,1738649439448,-509.10665467,0.00016438,2]
[351586566,1738649439457,-1013.77,0.00016438,2]
[351586567,1738649439467,-511.98004901,0.00016438,2]
[351586568,1738649439476,-500.0,0.00016438,2]
[351586569,1738649439486,-500.0,0.00016438,2]
[351586570,1738649439495,-500.0,0.00016438,2]
[351586571,1738649439506,-500.0,0.00016438,2]
[351586572,1738649439516,-1700.69,0.00016438,2]
[351586573,1738649439526,-500.0,0.00016438,2]
[351586574,1738649439535,-500.0,0.00016438,2]
[351586575,1738649439544,-724.52,0.00016438,2]
[351586576,1738649439553,-2709.51,0.00016438,2]
[351586577,1738649439562,-500.0,0.00016438,2]
[351586578,1738649439575,-511.85346843,0.00016438,2]
[351586579,1738649439587,-526.53405721,0.00016438,2]
[351586580,1738649439601,-500.0,0.00016438,2]
[351586581,1738649439613,-541.61831526,0.00016438,2]
[351586582,1738649439626,-1650.79,0.00016438,2]
[351586583,1738649439637,-5032.81,0.00016438,2]
[351586584,1738649439647,-500.0,0.00016438,2]
[351586585,1738649439661,-510.32229887,0.00016438,2]
[351586586,1738649439673,-500.0,0.00016438,2]
[351586587,1738649439686,-513.58999976,0.00016438,2]
[351586588,1738649439698,-500.0,0.00016438,2]
[351586589,1738649439711,-500.0,0.00016438,2]
[351586590,1738649439723,-500.0,0.00016438,2]
[351586591,1738649439735,-500.0,0.00016438,2]
[351586592,1738649439747,-500.0,0.00016438,2]
[351586593,1738649439762,-1274.21,0.00016438,2]
[351586594,1738649439776,-151.0,0.00016438,2]
[351586595,1738649439789,-151.0,0.00016438,2]
[351586596,1738649439800,-500.0,0.00016438,2]
[351586597,1738649439812,-3300.66,0.00016438,2]
[351586599,1738649439823,-2541.56,0.00016438,2]
[351586601,1738649439836,-500.0,0.00016438,2]
[351586603,1738649439850,-500.0,0.00016438,2]
[351586605,1738649439862,-500.0,0.00016438,2]
[351586607,1738649439874,-500.0,0.00016438,2]
[351586608,1738649439885,-500.0,0.00016438,2]
[351586609,1738649439895,-500.0,0.00016438,2]
[351586610,1738649439907,-1583.31,0.00016438,2]
[351586611,1738649439918,-500.0,0.00016438,2]
[351586612,1738649439930,-500.0,0.00016438,2]
[351586613,1738649439944,-500.0,0.00016438,2]
[351586614,1738649439957,-3657.56,0.00016438,2]
[351586615,1738649439975,-500.0,0.00016438,2]
[351586618,1738649439988,-500.0,0.00016438,2]
[351586620,1738649440003,-689.88,0.00016438,2]
[351586622,1738649440017,-1287.09,0.00016438,2]
[351586624,1738649440031,-1041.94,0.00016438,2]
[351586627,1738649440044,-164.35698989,0.00016438,2]
[351586629,1738649440055,-2776.54,0.00016438,2]
[351586631,1738649440066,-500.0,0.00016438,2]
[351586633,1738649440076,-276.8169302,0.00016438,2]
[351586635,1738649440087,-500.0,0.00016438,2]
[351586637,1738649440098,-500.0,0.00016438,2]
[351586640,1738649440110,-500.0,0.00016438,2]
[351586642,1738649440124,-500.0,0.00016438,2]
[351586644,1738649440136,-500.0,0.00016438,2]
[351586647,1738649440147,-7984.19,0.00016438,2]
[351586649,1738649440157,-500.0,0.00016438,2]
[351586651,1738649440170,-500.0,0.00016438,2]
[351586653,1738649440181,-500.0,0.00016438,2]
[351586655,1738649440192,-1203.38,0.00016438,2]
[351586658,1738649440204,-995.09,0.00016438,2]
[351586660,1738649440215,-500.0,0.00016438,2]
[351586662,1738649440225,-500.0,0.00016438,2]
[351586664,1738649440237,-500.0,0.00016438,2]
[351586666,1738649440248,-500.0,0.00016438,2]
[351586668,1738649440264,-665.33,0.00016438,2]
[351586671,1738649440274,-500.0,0.00016438,2]
[351586673,1738649440285,-500.0,0.00016438,2]
[351586675,1738649440297,-500.0,0.00016438,2]
[351586677,1738649440310,-1634.65,0.00016438,2]
[351586679,1738649440321,-533.49,0.00016438,2]
[351586681,1738649440332,-151.0,0.00016438,2]
[351586684,1738649440344,-151.0,0.00016438,2]
[351586686,1738649440355,-500.0,0.00016438,2]
[351586688,1738649440366,-500.0,0.00016438,2]
[351586690,1738649440378,-959.65,0.00016438,2]
[351586692,1738649440390,-500.0,0.00016438,2]
[351586695,1738649440402,-500.0,0.00016438,2]
[351586697,1738649440415,-500.0,0.00016438,5]
[351586699,1738649440427,-500.0,0.00016438,2]
[351586701,1738649440438,-500.0,0.00016438,2]
[351586703,1738649440449,-598.7,0.00016438,2]
[351586705,1738649440461,-23660.31,0.00016438,2]
[351586708,1738649440472,-10429.01,0.00016438,2]
[351586710,1738649440484,-500.0,0.00016438,2]
[351586712,1738649440495,-500.0,0.00016438,2]
[351586714,1738649440510,-500.0,0.00016438,2]
[351586716,1738649440521,-500.0,0.00016438,2]
[351586718,1738649440533,-500.0,0.00016438,2]
[351586719,1738649440545,-641.1,0.00016438,2]
[351586721,1738649440558,-500.0,0.00016438,2]
[351586722,1738649440569,-500.0,0.00016438,2]
[351586723,1738649440581,-500.0,0.00016438,2]
[351586724,1738649440592,-500.0,0.00016438,2]
[351586725,1738649440603,-500.0,0.00016438,2]
[351586726,1738649440615,-500.0,0.00016438,2]
[351586727,1738649440627,-500.0,0.00016438,2]
[351586728,1738649440637,-500.0,0.00016438,2]
[351586729,1738649440648,-500.0,0.00016438,2]
[351586730,1738649440659,-1386.7,0.00016438,2]
[351586731,1738649440670,-151.0,0.00016438,2]
[351586732,1738649440681,-151.0,0.00016438,2]
[351586733,1738649440692,-200.2267951,0.00016438,2]
[351586734,1738649440703,-1106.19,0.00016438,2]
[351586735,1738649440714,-598.69,0.00016438,2]
[351586736,1738649440725,-500.0,0.00016438,2]
[351586737,1738649440736,-500.0,0.00016438,2]
[351586738,1738649440747,-2441.58,0.00016438,2]
[351586739,1738649440761,-8000.75,0.00016438,2]
[351586740,1738649440772,-1996.26,0.00016438,2]
[351586741,1738649440783,-500.0,0.00016438,2]
[351586742,1738649440794,-500.0,0.00016438,2]
[351586743,1738649440805,-850.43,0.00016438,2]
[351586744,1738649440816,-500.0,0.00016438,2]
[351586745,1738649440826,-506.40964396,0.00016438,2]
[351586746,1738649440838,-523.57,0.00016438,2]
[351586747,1738649440849,-504.71568762,0.00016438,2]
[351586748,1738649440860,-500.0,0.00016438,2]
[351586749,1738649440871,-1674.23,0.00016438,2]
[351586750,1738649440883,-2963.02,0.00016438,2]
[351586751,1738649440894,-500.0,0.00016438,2]
[351586752,1738649440905,-500.0,0.00016438,2]
[351586753,1738649440916,-151.0,0.00016438,2]
[351586754,1738649440926,-500.0,0.00016438,2]
[351586755,1738649440937,-151.0,0.00016438,2]
[351586756,1738649440948,-502.14763186,0.00016438,2]
[351586757,1738649440958,-151.0,0.00016438,2]
[351586758,1738649440969,-1317.09,0.00016438,2]
[351586759,1738649440980,-2126.24,0.00016438,2]
[351586760,1738649440991,-500.0,0.00016438,2]
[351586761,1738649441003,-500.0,0.00016438,2]
[351586762,1738649441013,-500.0,0.00016438,2]
[351586763,1738649441023,-500.0,0.00016438,2]
[351586764,1738649441032,-757.71,0.00016438,2]
[351586765,1738649441190,-500.0,0.00016438,2]
[351586766,1738649441207,-3123.01,0.00016438,2]
[351586767,1738649441218,-500.0,0.00016438,2]
[351586768,1738649441227,-1205.84,0.00016438,2]
[351586769,1738649441236,-500.0,0.00016438,2]
[351586770,1738649441248,-500.0,0.00016438,2]
[351586771,1738649441261,-500.0,0.00016438,2]
[351586772,1738649441271,-1579.79,0.00016438,2]
[351586773,1738649441281,-570.96,0.00016438,2]
[351586774,1738649441291,-500.0,0.00016438,2]
[351586775,1738649441300,-500.0,0.00016438,2]
[351586776,1738649441310,-500.0,0.00016438,2]
[351586777,1738649441319,-500.0,0.00016438,2]
[351586778,1738649441331,-500.0,0.00016438,2]
[351586779,1738649441341,-500.0,0.00016438,2]
[351586780,1738649441350,-504.44228573,0.00016438,2]
[351586781,1738649441360,-500.0,0.00016438,2]
[351586782,1738649441370,-500.0,0.00016438,2]
[351586783,1738649441380,-500.0,0.00016438,2]
[351586784,1738649441390,-500.2,0.00016438,2]
[351586785,1738649441401,-151.0,0.00016438,2]
[351586786,1738649441411,-252.925463,0.00016438,2]
[351586787,1738649441422,-500.0,0.00016439,2]
[351586788,1738649441432,-5557.519808,0.0001644,2]
[351586789,1738649441442,-151.0,0.0001644,2]
[351586790,1738649441452,-282.0,0.0001646,2]
[351586791,1738649441462,-583.41026086,0.00016473,2]
[351586792,1738649441472,-503.46562787,0.00016473,2]
[351586793,1738649441482,-500.0,0.00016473,2]
[351586794,1738649441492,-500.0,0.00016473,2]
[351586795,1738649441506,-500.79492656,0.00016473,2]
[351586796,1738649441519,-504.91411847,0.00016473,2]
[351586797,1738649441529,-500.63344191,0.00016473,2]
[351586798,1738649441539,-503.38127608,0.00016473,2]
[351586799,1738649441549,-417.65287821,0.00016473,2]
[351586800,1738649441559,-501.09183101,0.00016473,2]
[351586801,1738649441568,-500.0,0.00016473,2]
[351586802,1738649441578,-500.52618656,0.00016473,2]
[351586803,1738649441587,-500.0,0.00016473,2]
[351586804,1738649441597,-224.662925,0.00016499,2]
[351586805,1738649441606,-500.0,0.00016499,2]
[351586806,1738649441616,-500.0,0.00016499,2]
[351586807,1738649441626,-500.0,0.00016499,2]
[351586808,1738649441636,-212.15,0.00016499,2]
[351586809,1738649441646,-16412.72,0.000165,2]
[351586810,1738649441656,-20165.49,0.000165,2]
[351586811,1738649441665,-34513.33457569,0.000165,2]
[351586812,1738649441675,-151.0,0.000165,2]
[351586813,1738649441684,-151.0,0.000165,2]
[351586814,1738649441694,-500.0,0.000165,2]
[351586815,1738649441703,-151.0,0.000165,2]
[351586816,1738649441712,-500.0,0.000165,2]
[351586817,1738649441722,-500.0,0.000165,2]
[351586818,1738649441731,-151.0,0.000165,2]
[351586819,1738649441740,-151.0,0.000165,2]
[351586820,1738649441750,-622.0,0.000165,2]
[351586821,1738649441762,-500.0,0.000165,2]
[351586822,1738649441771,-151.0,0.000165,2]
[351586823,1738649441779,-151.0,0.000165,2]
[351586824,1738649441789,-602.0,0.000165,2]
[351586825,1738649441798,-500.0,0.000165,2]
[351586826,1738649441807,-151.0,0.00016547,2]
[351586827,1738649441817,-172.22149,0.00016547,2]
[351586828,1738649441826,-248.318,0.00016548,2]
[351586829,1738649441836,-231.214,0.00016548,2]
[351586830,1738649441845,-151.243,0.00016548,2]
[351586831,1738649441854,-1974.0,0.00016548,2]
[351586832,1738649441863,-541.988,0.00016548,2]
[351586833,1738649441872,-2298.0,0.00016548,2]
[351586834,1738649441881,-153.55854776,0.00016548,2]
[351586835,1738649441891,-153.55854774,0.00016548,2]
[351586836,1738649441900,-504.38993484,0.00016573,2]
[351586837,1738649441909,-500.0,0.00016573,2]
[351586838,1738649441918,-397.631,0.00016573,2]
[351586839,1738649441927,-500.0,0.00016574,2]
[351586840,1738649441936,-262.26047956,0.00016574,2]
[351586841,1738649441946,-500.0,0.00016574,2]
[351586842,1738649441955,-224.2222006,0.00016574,2]
[351586843,1738649441965,-500.0,0.00016574,2]
[351586844,1738649441975,-500.0,0.00016574,2]
[351586845,1738649441984,-500.0,0.00016574,2]
[351586846,1738649441993,-500.0,0.00016574,2]
[351586847,1738649442005,-500.0,0.00016574,2]
[351586848,1738649442015,-500.0,0.00016574,2]
[351586849,1738649442024,-151.0,0.00016575,2]
[351586850,1738649442034,-151.0,0.00016575,2]
[351586851,1738649442044,-151.0,0.00016575,2]
[351586852,1738649442053,-151.0,0.00016575,2]
[351586853,1738649442062,-500.0,0.00016575,2]
[351586854,1738649442071,-240.37012297,0.00016575,2]
[351586855,1738649442081,-500.0,0.00016575,2]
[351586856,1738649442091,-500.0,0.00016575,2]
[351586857,1738649442100,-380.11572184,0.00016575,2]
[351586858,1738649442110,-361.91054494,0.00016575,2]
[351586859,1738649442119,-521.70678171,0.00016575,2]
[351586860,1738649442129,-519.25958998,0.00016575,2]
[351586861,1738649442138,-500.0,0.00016575,2]
[351586862,1738649442147,-500.0,0.00016575,2]
[351586863,1738649442156,-500.0,0.00016575,2]
[351586864,1738649442165,-500.0,0.00016575,2]
[351586865,1738649442175,-550.36,0.00016575,2]
[351586866,1738649442184,-500.0,0.00016575,2]
[351586867,1738649442193,-500.0,0.00016575,2]
[351586868,1738649442202,-500.0,0.00016575,2]
[351586869,1738649442211,-500.0,0.00016575,2]
[351586870,1738649442220,-500.0,0.00016575,2]
[351586871,1738649442229,-519.25564087,0.00016575,2]
[351586872,1738649442239,-500.0,0.00016575,2]
[351586873,1738649442248,-500.0,0.00016575,2]
[351586874,1738649442265,-500.0,0.00016575,2]
[351586875,1738649442275,-500.0,0.00016575,2]
[351586876,1738649442284,-500.0,0.00016575,2]
[351586877,1738649442294,-657.72,0.00016575,2]
[351586878,1738649442305,-500.0,0.00016575,2]
[351586879,1738649442315,-857.78,0.00016575,2]
[351586880,1738649442325,-314.86823239,0.00016575,2]
[351586881,1738649442335,-500.0,0.00016575,2]
[351586882,1738649442346,-222.25817926,0.00016575,2]
[351586883,1738649442355,-500.0,0.00016575,2]
[351586884,1738649442365,-500.0,0.00016575,2]
[351586885,1738649442374,-500.0,0.00016575,2]
[351586886,1738649442383,-500.0,0.00016575,2]
[351586887,1738649442392,-476.39169108,0.00016575,2]
[351586888,1738649442401,-500.0,0.00016575,2]
[351586889,1738649442411,-500.0,0.00016575,2]
[351586890,1738649442420,-269.56383552,0.00016575,2]
[351586891,1738649442430,-508.37606612,0.00016575,2]
[351586892,1738649442439,-500.0,0.00016575,2]
[351586893,1738649442449,-500.0,0.00016575,2]
[351586894,1738649442458,-500.0,0.00016575,2]
[351586895,1738649442469,-1098.51,0.00016575,2]
[351586896,1738649442479,-504.19583548,0.00016575,2]
[351586897,1738649442488,-1080.38,0.00016575,2]
[351586898,1738649442498,-500.0,0.00016575,2]
[351586899,1738649442512,-500.0,0.00016575,2]
[351586900,1738649442521,-500.0,0.00016575,2]
[351586901,1738649442531,-280.12742006,0.00016575,2]
[351586902,1738649442540,-500.0,0.00016575,2]
[351586903,1738649442549,-500.0,0.00016575,2]
[351586904,1738649442558,-1013.77,0.00016575,2]
[351586905,1738649442568,-500.0,0.00016575,2]
[351586906,1738649442576,-500.0,0.00016575,2]
[351586907,1738649442586,-500.0,0.00016575,2]
[351586908,1738649442595,-500.0,0.00016575,2]
[351586909,1738649442605,-1700.69,0.00016575,2]
[351586910,1738649442614,-500.0,0.00016575,2]
[351586911,1738649442623,-500.0,0.00016575,2]
[351586912,1738649442633,-724.52,0.00016575,2]
[351586913,1738649442642,-2709.51,0.00016575,2]
[351586914,1738649442651,-500.0,0.00016575,2]
[351586915,1738649442663,-500.0,0.00016575,2]
[351586916,1738649442673,-1650.79,0.00016575,2]
[351586917,1738649442683,-5032.81,0.00016575,2]
[351586918,1738649442693,-500.0,0.00016575,2]
[351586919,1738649442702,-500.0,0.00016575,2]
[351586920,1738649442712,-500.0,0.00016575,2]
[351586921,1738649442722,-500.0,0.00016575,2]
[351586922,1738649442732,-500.0,0.00016575,2]
[351586923,1738649442741,-500.0,0.00016575,2]
[351586924,1738649442752,-500.0,0.00016575,2]
[351586925,1738649442762,-1274.21,0.00016575,2]
[351586927,1738649442771,-500.0,0.00016575,2]
[351586928,1738649442780,-3300.66,0.00016575,2]
[351586929,1738649442789,-2541.56,0.00016575,2]
[351586930,1738649442799,-500.0,0.00016575,2]
[351586932,1738649442809,-500.0,0.00016575,2]
[351586933,1738649442818,-518.1928402,0.00016575,2]
[351586934,1738649442827,-500.0,0.00016575,2]
[351586935,1738649442837,-500.0,0.00016575,2]
[351586936,1738649442846,-500.0,0.00016575,2]
[351586937,1738649442856,-1583.31,0.00016575,2]
[351586938,1738649442865,-500.0,0.00016575,2]
[351586939,1738649442875,-500.0,0.00016575,2]
[351586940,1738649442884,-500.0,0.00016575,2]
[351586941,1738649442894,-3657.56,0.00016575,2]
[351586942,1738649442904,-500.0,0.00016575,2]
[351586943,1738649442913,-500.0,0.00016575,2]
[351586944,1738649442923,-689.88,0.00016575,2]
[351586945,1738649442933,-1287.09,0.00016575,2]
[351586946,1738649442943,-1041.94,0.00016575,2]
[351586947,1738649442952,-2776.54,0.00016575,2]
[351586948,1738649442961,-500.0,0.00016575,2]
[351586950,1738649442972,-500.0,0.00016575,2]
[351586951,1738649442981,-500.0,0.00016575,2]
[351586952,1738649442991,-500.0,0.00016575,2]
[351586953,1738649443000,-500.0,0.00016575,2]
[351586954,1738649443011,-7984.19,0.00016575,2]
[351586955,1738649443021,-500.0,0.00016575,2]
[351586956,1738649443031,-500.0,0.00016575,2]
[351586957,1738649443042,-500.0,0.00016575,2]
[351586958,1738649443051,-1203.38,0.00016575,2]
[351586959,1738649443062,-995.09,0.00016575,2]
[351586960,1738649443071,-500.0,0.00016575,2]
[351586961,1738649443080,-500.0,0.00016575,2]
[351586962,1738649443091,-500.0,0.00016575,2]
[351586963,1738649443101,-512.16986127,0.00016575,2]
[351586964,1738649443111,-665.33,0.00016575,2]
[351586965,1738649443120,-354.87565461,0.00016575,2]
[351586966,1738649443130,-527.35439677,0.00016575,2]
[351586967,1738649443139,-500.0,0.00016575,2]
[351586968,1738649443149,-1634.65,0.00016575,2]
[351586969,1738649443160,-533.49,0.00016575,2]
[351586970,1738649443169,-151.0,0.00016575,2]
[351586971,1738649443179,-500.0,0.00016575,2]
[351586972,1738649443189,-151.0,0.00016575,2]
[351586973,1738649443198,-500.0,0.00016575,2]
[351586974,1738649443208,-151.0,0.00016575,2]
[351586975,1738649443217,-959.65,0.00016575,2]
[351586976,1738649443227,-151.0,0.00016575,2]
[351586977,1738649443237,-500.0,0.00016575,2]
[351586978,1738649443251,-500.0,0.00016575,2]
[351586979,1738649443264,-500.0,0.00016575,5]
[351586980,1738649443274,-500.0,0.00016575,2]
[351586981,1738649443283,-507.65033112,0.00016575,2]
[351586982,1738649443295,-598.7,0.00016575,2]
[351586983,1738649443305,-23660.31,0.00016575,2]
[351586984,1738649443315,-10429.01,0.00016575,2]
[351586985,1738649443326,-500.0,0.00016575,2]
[351586986,1738649443335,-641.1,0.00016575,2]
[351586987,1738649443345,-500.0,0.00016575,2]
[351586988,1738649443355,-500.0,0.00016575,2]
[351586989,1738649443363,-1386.7,0.00016575,2]
[351586990,1738649443373,-155.253825,0.00016575,2]
[351586991,1738649443382,-1106.19,0.00016575,2]